Cogmind - Beta 14 @@@ ROGUE MODE // 2024.11.17 @ 07:04:47 Player: Fangrelle Result: Destroyed by as-27201 with Assembled Rifle Performance ------------- Evolutions (0) 0 Regions Visited (2) 400 Robots Destroyed (33) 165 Value Destroyed (680) 680 Prototype IDs (0) 0 Alien Tech Used (0) 0 Bonus (0) 0 TOTAL SCORE: 1245 Bonus ------- None Cogmind --------- Core Integrity 0/250 Matter 259/300 Energy 258/265 System Corruption 0% Temperature Cool (28) Movement Rolling (145) Ox3 Location -10/Mines Parts ------- > --- POWER (1) -------- Improved Ion Engine > --- PROPULSION (2) --- Light Treads Compact Wheel > --- UTILITY (2) ------ High-capacity Storage Unit Light Armor Plating > --- WEAPON (2) ------- Assault Rifle > --- INVENTORY (20) --- Ion Engine Light Treads Compact Wheel Large Storage Unit Large Storage Unit High-capacity Storage Unit High-capacity Matter Pod (112) High-capacity Matter Pod (0) Visual Processing Unit Sensor Array Seismic Detector Targeting Computer Tractor Beam Small Laser Datajack Datajack Plasma Flamer Peak State ------------ > --- POWER ------------ Improved Ion Engine > --- PROPULSION ------- Light Treads Light Treads > --- UTILITY ---------- High-capacity Storage Unit Light Armor Plating > --- WEAPON ----------- Assault Rifle Grenade Launcher > --- INVENTORY -------- Ion Engine Compact Wheel Compact Wheel Large Storage Unit Large Storage Unit High-capacity Storage Unit High-capacity Matter Pod High-capacity Matter Pod Visual Processing Unit Sensor Array Seismic Detector Targeting Computer Tractor Beam Small Laser Datajack Datajack Plasma Flamer [Rating: 10] Favorites ----------- Power Light Ion Engine Engine Light Ion Engine Propulsion Aluminum Leg Treads Light Treads Leg Aluminum Leg Wheel Compact Wheel Utility High-capacity Storage Unit Storage High-capacity Storage Unit Processor Targeting Computer Protection Light Armor Plating Weapon Grenade Launcher Energy Gun Small Laser Ballistic Gun Assault Rifle Launcher Grenade Launcher Build | -11 -10 -10 ------- Run | Yrd Mat Min Slots Evolved . | . . . Power . | . . . Propulsion . | . . . Utility . | . . . Weapon . | . . . Parts Attached 14 | . 5 9 Power 1 | . . 1 Engine 1 | . . 1 Core . | . . . Reactor . | . . . Propulsion 3 | . . 3 Treads 2 | . . 2 Leg . | . . . Wheel 1 | . . 1 Hover . | . . . Flight . | . . . Utility 3 | . 2 1 Device . | . . . Storage 1 | . 1 . Processor 1 | . 1 . Hackware . | . . . Protection 1 | . . 1 Artifact . | . . . Weapon 7 | . 3 4 Energy Gun 2 | . 2 . Energy Cannon . | . . . Ballistic Gun 1 | . . 1 Ballistic Cannon . | . . . Launcher 4 | . 1 3 Special Weapon . | . . . Impact Weapon . | . . . Slashing Weapon . | . . . Piercing Weapon . | . . . Special Melee Weapon . | . . . Unidentified Prototypes . | . . . Parts Lost 7 | . 2 5 Power 1 | . . 1 Propulsion 2 | . 1 1 Utility . | . . . Weapon 4 | . 1 3 Highest Loss Streak 3 | . 2 3 To Critical Strikes . | . . . Average Slot Usage (%) 90 | . 92 86 Engine 11 | . 14 6 Treads 9 | . . 24 Leg 14 | . 22 1 Storage 16 | . 18 14 Processor 7 | . 8 6 Protection 2 | . . 7 Energy Gun 13 | . 19 3 Ballistic Gun 1 | . 1 . Launcher 12 | . 6 20 Peak Build Rating 10 | 6 8 10 Average Rating 7 | 6 7 7 On Entrance 6 | 6 6 7 Naked Turns . | . . . Heaviest Build 56 | 12 53 56 Greatest Support 40 | 20 20 40 Greatest Overweight (x) 4 | . 4 4 Average Overweight (x) 1 | . 2 1 Largest Inventory Capacity 20 | 8 20 20 Average Capacity 19 | 8 19 20 Most Carried 18 | 6 18 18 Average Carried 14 | 6 12 16 Final Capacity 20 | 8 20 20 Final Carried 18 | 6 18 17 Class Distribution -------------------- 100% | Mutant Dominant Class ---------------- Mutant | -10/Materials Mutant | -10/Mines Resources | -11 -10 -10 ----------- Run | Yrd Mat Min Matter Collected 757 | 200 263 294 Remotely . | . . . Salvage Created 640 | . 396 244 Parts 50 | . 36 14 Haulers Intercepted . | . . . Recyclers Shooed 1 | . 1 . Parts Field Recycled . | . . . Retrieved Matter . | . . . Parts Self-Destructed . | . . . Prevented . | . . . Kills | -11 -10 -10 ------- Run | Yrd Mat Min Combat Hostiles Destroyed 27 | . 15 12 Melee 1 | . . 1 Guns 6 | . 6 . AOE 20 | . 9 11 Classes Destroyed 9 | . 6 3 Worker 2 | . . 2 Builder 5 | . 4 1 Tunneler 1 | . 1 . Recycler 1 | . . 1 Operator 1 | . 1 . Watcher 1 | . 1 . Swarmer 9 | . 6 3 Grunt 13 | . 9 4 Assembled 5 | . . 5 Best Kill Streak 6 | . 6 5 Combat Bots Only 5 | . 3 5 Max Kills in Single Turn 4 | . 4 4 Gunslinging . | . . . Exploded 4 | . 2 4 Melee 1 | . . 1 Uniques/NPCs Destroyed . | . . . Combat | -11 -10 -10 -------- Run | Yrd Mat Min Hostile Shots Fired 100 | . 56 44 Missed 21 | . 11 10 Damage Taken 1107 | . 532 575 Core 253 | . 141 112 Absorbed by Shields . | . . . Core Remaining (%) 100 | 100 . . Volleys Fired 57 | . 43 14 Largest 2 | . 2 2 Hottest 80 | . 80 70 Shots Fired 103 | . 82 21 Gun 67 | . 63 4 Cannon . | . . . Launcher 36 | . 19 17 Special . | . . . Kinetic 7 | . 5 2 Thermal 45 | . 43 2 Explosive 36 | . 19 17 Electromagnetic 15 | . 15 . Robot Hit Streak 5 | . 5 4 Robot Miss Streak 6 | . 6 1 Penetration Max . | . . . Secondary Targets 1 | . 1 . Max Gunslinging Chain 1 | . 1 . Shots Hit Robots 39 | . 31 8 Core Hits 59 | . 30 29 Critical Kills . | . . . Critical Parts Destroyed . | . . . Critical Strikes . | . . . Melee Attacks . | . . . Impact . | . . . Slashing . | . . . Piercing . | . . . Sneak Attacks . | . . . Combat Hostiles . | . . . Follow-up Attacks . | . . . Damage Inflicted 2264 | . 1277 987 Guns 350 | . 315 35 Cannons . | . . . Explosions 1908 | . 962 946 Melee . | . . . Ramming 6 | . . 6 Kinetic 47 | . 23 24 Thermal 544 | . 533 11 Explosive 1617 | . 671 946 Electromagnetic 50 | . 50 . Impact . | . . . Slashing . | . . . Piercing . | . . . Highest Corruption . | . . . Average Corruption . | . . . Corruption Purged . | . . . Corruption Blocked . | . . . Overload Shots . | . . . Overflow Damage 208 | . 203 5 Projectiles . | . . . Explosions 208 | . 203 5 Melee . | . . . Knockbacks . | . . . Impact . | . . . Kinetic . | . . . Secondary . | . . . Self-Inflicted Damage 250 | . 98 152 Shots 9 | . 3 6 Rammed 1 | . . 1 Targets Rammed 1 | . . 1 Kicked . | . . . Crushed . | . . . Highest Temperature 102 | . 102 44 Average Temperature 25 | . 26 16 Received Heat Transfer 321 | . 138 183 Siege Activations . | . . . Robots Corrupted . | . . . Combat Hostiles . | . . . Parts Fried . | . . . Impact Corruptions . | . . . Robots Melted . | . . . Combat Hostiles . | . . . Parts Melted 1 | . 1 . Heat Transferred 825 | . 800 25 Parts Sabotaged . | . . . Parts Stolen . | . . . Parts Stripped . | . . . Power Chain Reactions . | . . . Alert | -11 -10 -10 ------- Run | Yrd Mat Min Peak Influence 251 | . 251 239 Initial 56 | . . 56 Average 113 | . 129 91 Maximum Alert Level 1 | . 1 1 Low Security (%) 79 | 100 79 77 Level 1 20 | . 20 22 Level 2 . | . . . Level 3 . | . . . Level 4 . | . . . Level 5 . | . . . High Security . | . . . Max Security . | . . . Squads Dispatched 4 | . 4 . Investigation 2 | . 2 . Extermination . | . . . Reinforcement 2 | . 2 . Assault . | . . . Garrison . | . . . Intercept . | . . . Searches Triggered . | . . . Construction Impeded . | . . . Haulers Reinforced . | . . . Active Scanning Responses . | . . . Cargo Convoy Interrupts . | . . . Stealth | -11 -10 -10 --------- Run | Yrd Mat Min Distress Signals 1 | . 1 . Communications Jammed . | . . . Distress Signals . | . . . Times Spotted 50 | . 25 25 Peak Tracking Total 17 | . 3 17 Tactical Retreats 1 | . 1 . Traps | -11 -10 -10 ------- Run | Yrd Mat Min Traps Triggered 1 | . 1 . Indirectly . | . . . Trap Hack Attempts . | . . . Triggered . | . . . Disarmed . | . . . Reprogrammed . | . . . Reused . | . . . Traps Extracted . | . . . Installed . | . . . Triggered . | . . . Machines | -11 -10 -10 ---------- Run | Yrd Mat Min Machines Disabled 5 | . 4 1 Max in Single Turn 2 | . 2 1 Machines Repaired . | . . . Machines Dismantled . | . . . Machines Sabotaged . | . . . Overloaded Fab Kills . | . . . Hacking | -11 -10 -10 --------- Run | Yrd Mat Min Machines Accessed 5 | . 5 . Terminals 4 | . 4 . Fabricators . | . . . Repair Stations . | . . . Recycling Units 1 | . 1 . Scanalyzers . | . . . Garrison Access . | . . . Total Hacks 17 | . 17 . Successful 8 | . 8 . Failed 9 | . 9 . Catastrophic . | . . . Database Lockouts . | . . . Manual 12 | . 12 . Terminals 12 | . 12 . Fabricators . | . . . Repair Stations . | . . . Recycling Units 5 | . 5 . Scanalyzers . | . . . Garrison Access . | . . . Terminal Hacks . | . . . Fabricator Hacks . | . . . Repair Station Hacks . | . . . Recycling Unit Hacks 1 | . 1 . Report Inventory 1 | . 1 . Scanalyzer . | . . . Garrison Access Hacks . | . . . Unauthorized Hacks 7 | . 7 . Terminals 6 | . 6 . Botnet 4 | . 4 . Operators 2 | . 2 . Fabricators . | . . . Repair Stations . | . . . Recycling Units 1 | . 1 . Tunnel 1 | . 1 . Scanalyzers . | . . . Garrison Access . | . . . Data Cores Recovered . | . . . Used . | . . . Hacking Detections 5 | . 5 . Full Trace Events 1 | . 1 . Feedback Events . | . . . Feedback Blocked . | . . . Robot Schematics Acquired . | . . . Robots Built . | . . . Authchips . | . . . Time . | . . . Total Robot Build Rating . | . . . Part Schematics Acquired . | . . . Parts Built . | . . . Authchips . | . . . Time . | . . . Total Part Build Rating . | . . . Parts Repaired . | . . . Time . | . . . Parts Recycled . | . . . Recycled Matter . | . . . Retrieved Matter . | . . . Retrieved Components . | . . . Parts Scanalyzed . | . . . Part Schematics Acquired . | . . . Parts Damaged . | . . . Bothacking | -11 -10 -10 ------------ Run | Yrd Mat Min Used RIF Installer . | . . . Robots Hacked . | . . . Non-combat . | . . . Combat . | . . . Robot Hacks Applied . | . . . Relay Couplers Released . | . . . Fabnet Peak Effective % . | . . . Robots Rewired . | . . . Allies Hacked . | . . . Hacks Repelled . | . . . Allies | -11 -10 -10 -------- Run | Yrd Mat Min Total Allies . | . . . Largest Group . | . . . Highest-Rated Group . | . . . Highest-Rated Ally . | . . . Total Orders . | . . . Ally Attacks . | . . . Total Damage . | . . . Kills . | . . . Allies Corrupted . | . . . Allies Melted . | . . . Intel | -11 -10 -10 ------- Run | Yrd Mat Min Robot Analysis Total . | . . . Derelict Logs Recovered 1 | . . 1 Drone Launches . | . . . Drone Recoveries . | . . . Exploration | -11 -10 -10 ------------- Run | Yrd Mat Min Turns Passed 2840 | 29 1761 1050 Spaces Moved 964 | 25 542 397 Core . | . . . Treads 368 | . . 368 Legs 595 | 25 542 28 Wheels 1 | . . 1 Hover . | . . . Flight . | . . . Fastest Speed 120 | 120 120 145 Average Speed 270 | 120 290 251 Slowest Speed 400 | 120 400 400 Overloaded Moves . | . . . Propulsion Burnouts . | . . . Robots Hopped . | . . . Cave-ins Triggered . | . . . Exploration Rate (%) 50 | 3 78 69 Regions Visited 2 Branch Regions 1 Pre-discovered Areas 1 | . 1 . Known Exits Taken . | . . . Unknown Exits Taken 2 | 1 1 . Scrap Searched 2 | . . 2 Spaces Dug 63 | . 25 38 Terrain Destroyed 260 | . 125 135 Melee . | . . . Projectile . | . . . AOE 260 | . 125 135 Terrain Rammed . | . . . Walls Destroyed . | . . . Machines Disabled . | . . . Actions | -11 -10 -10 --------- Run | Yrd Mat Min Total 1096 | 24 645 427 Wait 43 | . 42 1 Move 962 | 24 541 397 Hop . | . . . Pick Up 16 | . 13 3 Fast Attach 5 | . 3 2 Attach 6 | . 1 5 Detach 1 | . . 1 Swap 3 | . 1 2 Drop 2 | . 1 1 Fire 57 | . 43 14 Melee . | . . . Ram . | . . . Kick . | . . . Crush 1 | . . 1 Escape Stasis . | . . . Rewire . | . . . Trap . | . . . Miscellaneous . | . . . Route ------- -11/Scrapyard -10/Materials (discovered 5 exits: [*Mat x3] / [*Min x2]) -10/Mines (discovered 1 exit: [*Mat]) History --------- Turn | Location | Event 1 | -11/Scrapyard | Discovered new exit (range 2) 30 | -11/Scrapyard | Entered Materials 309 | -10/Materials | Build established: Mutant 480 | -10/Materials | Discovered new exit (range 8) 557 | -10/Materials | Discovered new exit (range 16) 816 | -10/Materials | Discovered new exit (range 13) 953 | -10/Materials | Discovered new exit (range 13) 1109 | -10/Materials | Discovered new exit (range 8) 1455 | -10/Materials | Core integrity fell below 50% 1791 | -10/Materials | Entered Mines 1895 | -10/Mines | Discovered new exit (range 7) 1935 | -10/Mines | Lost 3 parts (1p1n1w) 2049 | -10/Mines | Learned Materials stockpile data 2271 | -10/Mines | Joined a pair of Derelicts in attacking an 0b10 outpost 2791 | -10/Mines | A weapon hastily lodged in a ceiling crevice suddenly fell to the ground 2815 | -10/Mines | Assembled infested the area 2820 | -10/Mines | Assisted by a Guerilla fighting off Assembled 2836 | -10/Mines | Core integrity fell below 20% 2841 | -10/Mines | Destroyed by as-27201 with Assembled Rifle Last Messages --------------- 02815_ ALERT: Infestation in the mines, dispatching Demolisher response squad. 02820_ A derelict emerges from the shadows: "You need to get out of here! I've been tracking a group of Assembled to figure out where they're coming from, and they're closing on this area, come on!" 02821_ Searching scrap... 02821_ Found Seismic Detector. 02821_ Found EM Pulse Gun. 02821_ Found Wheel. 02821_ Found Targeting Computer. 02821_ Found 51 Matter. 02822_ Acquired 51 matter. 02828_ Acquired Seismic Detector. 02832_ OU-V42(h) heat damages Armor Integrity Analyzer, Targeting Computer, Flexi-carbon Leg. 02832_ OU-V42(h) critical meltdown. 02833_ as-02887 destroyed. 02836_ as-05144 destroyed. 02836_ Grenade Launcher destroyed. 02836_ Destroyed Grenade Launcher. 02836_ as-43429 destroyed. 02836_ as-52460 destroyed. 02836_ as-68142 destroyed. Map ----- +----------------------------------------------------+ | ??????????????# # #### | | ??????????????# ###### # ### | | ??????????????# #????## ##### ## | | ??????????????# #?????# ## # # | | ??????????##### ##????# ## ## | | ?????????## ##???# ## ## | | ????????## ##### """ | | ????????# """ ## | | ????????# ### | | ????????## ###### # ##?# | | ?????????### ##??## ## #??# | | ???????????## ##??##### #??# | | ????????????## #??????# #??### | | ??????????##### #??????# #????? | | ??????????# ##?????# #????? | | ??????????# #### ##????# ###### | | ??????????????##t ##???# | | ?????????????## #???# | | ????????????## ##???######### | | ???????###### ######????????????? | | ???##### ##?????????????????? | | ??## ##??????????????????? | | ??# ## ##???????????????????? | | ??# ### ## ###????????????????????? | | ??## ##?# ## ##?????????????????????? | | ???#####??#[ @ ##????????????????????? | | ??????????#= a #????????????????????? | | ??????????# %% #????????????????????? | | ??????????## % #????????????????????? | | ???????????# a #????????????????????? | | ???????????# a% ????????????????????? | | ???????????# aaa ???????????????????? | | ??????????? # ###??????????????????? | | ???????????## ###????????????????????? | | ????????????# #??????????????????????? | | ????????????# ???????????????????????? | | ????????????#%a???????????????????????? | | ????????????#a ???????????????????????? | | ????????????#a ???????????????????????? | | ????????????? ???????????????????????? | | ?????????????% ???????????????????????? | | ????????????? ???????????????????????? | | ??????????????????????????????????????? | | ??????????????????????????????????????? | | ??????????????????????????????????????? | | ??????????????????????????????????????? | | ??????????????????????????????????????? | | ??????????????????????????????????????? | | ??????????????????????????????????????? | | ??????????????????????????????????????? | +----------------------------------------------------+ Best States ------------- Heat Dissipation 25 Energy Generation 12 Energy Capacity 265 Matter Stores 300 Matter Capacity 300 Sight Range 16 Terrain Scan Density 10 Armor Coverage 150 Evasion (%) 55 Targeting Accuracy 5 Recoil Reduction 2 Item Schematics ----------------- None Robot Schematics ------------------ None Fabricated ------------ Nothing Alien Tech Used ----------------- None Achievements -------------- None Challenges ------------ None Game ------ Seed VisualThermalBroadsword Manual? 0 Play Time 00:12:33 Cumulative 97.0 hours Start 2024.11.17 @ 06:24:34 End 2024.11.17 @ 07:04:47 Sessions 7 Manual Loads 0 Difficulty Rogue Special Mode None Game No. 172 Rogue 172 Adventurer 0 Explorer 0 Win Type - Total 0 Types 0/0/0/0/0/0/0/0/0 Lore% 42 Gallery% 38 Achievement% 34 Wizard Run 0 Options --------- Layout 0 ASCII 0 Keyboard 0 Movement Mouse Keybinds 0 Fullscreen 1 Font 24/Cog Map View 91x25 Zoom Use 75% Tactical HUD 1 Map Filters NONE Filters NONE Steam 1 RUN: 82afa102-c572-4426-b660-92f803749387